Cogmind - Beta 16 @@@ ROGUE MODE // 2025.11.24 @ 16:54:54 Player: OBLIQUE Result: Destroyed by S-10 Pest with Light Assault Rifle Performance ------------- Evolutions (0) 0 Regions Visited (1) 200 Robots Destroyed (0) 0 Value Destroyed (0) 0 Prototype IDs (0) 0 Alien Tech Used (0) 0 Bonus (0) 0 TOTAL SCORE: 200 Bonus ------- None Cogmind --------- Core Integrity 0/250 Matter 279/300 Energy 99/100 System Corruption 0% Temperature Cool (0) Movement Rolling (80) Location -10/Materials Parts ------- > --- POWER (1) -------- (None) > --- PROPULSION (2) --- Wheel > --- UTILITY (2) ------ Small Storage Unit > --- WEAPON (2) ------- Light Cannon > --- INVENTORY (8) ---- High-capacity Matter Pod (0) Peak State ------------ > --- POWER ------------ Ion Engine > --- PROPULSION ------- Wheel Wheel > --- UTILITY ---------- Small Storage Unit Improved Terrain Scanner > --- WEAPON ----------- Small Laser Assault Rifle > --- INVENTORY -------- Wheel [Rating: 9] Favorites ----------- Power Light Ion Engine Engine Light Ion Engine Propulsion Aluminum Leg Leg Aluminum Leg Wheel Wheel Utility Small Storage Unit Device Improved Terrain Scanner Storage Small Storage Unit Weapon Small Laser Energy Gun Small Laser Ballistic Gun Assault Rifle Ballistic Cannon Light Cannon Special Weapon Mining Laser Build | -11 -10 ------- Run | Yrd Mat Slots Evolved . | . . Power . | . . Propulsion . | . . Utility . | . . Weapon . | . . Parts Attached 17 | 15 2 Power 2 | 2 . Engine 2 | 2 . Core . | . . Reactor . | . . Propulsion 7 | 6 1 Treads . | . . Leg 2 | 2 . Wheel 5 | 4 1 Hover . | . . Flight . | . . Utility 3 | 3 . Device 2 | 2 . Storage 1 | 1 . Processor . | . . Hackware . | . . Protection . | . . Artifact . | . . Weapon 5 | 4 1 Energy Gun 2 | 2 . Energy Cannon . | . . Ballistic Gun 1 | 1 . Ballistic Cannon 1 | . 1 Launcher . | . . Special Weapon 1 | 1 . Impact Weapon . | . . Slashing Weapon . | . . Piercing Weapon . | . . Special Melee Weapon . | . . Unidentified Prototypes . | . . Parts Lost 14 | 14 . Power 2 | 2 . Propulsion 6 | 6 . Utility 2 | 2 . Weapon 4 | 4 . Highest Loss Streak 9 | 9 . To Critical Strikes . | . . Average Backups 5 | 5 . Power . | . . Propulsion 1 | 1 . Utility . | . . Weapon 2 | 2 . Tool/Special . | . . Unused Backups . | . . Power . | . . Propulsion . | . . Utility . | . . Weapon . | . . Tool/Special . | . . Average Slot Usage (%) 31 | . 31 Wheel 14 | . 14 Storage 14 | . 14 Ballistic Cannon 3 | . 3 Peak Build Rating 9 | 9 3 Average Rating 4 | 4 2 On Entrance . | . 1 Avg Prop Armor Cover (%) . | . . Naked Turns . | . . Heaviest Build 14 | 14 8 Greatest Support 20 | 20 10 Greatest Overweight (x) 1 | 1 . Average Overweight (x) . | . . Largest Inventory Capacity 8 | 8 8 Average Capacity 7 | 7 8 Most Carried 6 | 6 2 Average Carried 5 | 5 . Final Capacity 8 | 8 8 Final Carried 1 | 1 1 Class Distribution -------------------- None Dominant Class ---------------- None Resources | -11 -10 ----------- Run | Yrd Mat Matter Collected 348 | 348 . Remotely . | . . Salvage Created 56 | 56 . Parts . | . . Haulers Intercepted . | . . Recyclers Shooed . | . . Parts Field Recycled . | . . Retrieved Matter . | . . Parts Self-Destructed . | . . Prevented . | . . Parts Restored . | . . Kills | -11 -10 ------- Run | Yrd Mat Combat Hostiles Destroyed 4 | 4 . Guns 4 | 4 . Classes Destroyed 1 | 1 . Assembled 4 | 4 . Best Kill Streak 2 | 2 . Combat Bots Only 2 | 2 . Max Kills in Single Turn 1 | 1 . Gunslinging . | . . Exploded . | . . Melee . | . . Uniques/NPCs Destroyed . | . . Combat | -11 -10 -------- Run | Yrd Mat Hostile Shots Fired 73 | 68 5 Missed 17 | 16 1 Hits 56 | 52 4 Melee 2 | 2 . Projectile 54 | 50 4 AOE 11 | 11 . Damage Taken 1097 | 1065 32 Core 255 | 223 32 Absorbed by Shields . | . . Core Remaining (%) 10 | 10 . Volleys Fired 15 | 15 . Largest 2 | 2 . Hottest 100 | 100 . Shots Fired 26 | 26 . Gun 24 | 24 . Cannon . | . . Launcher . | . . Special 2 | 2 . Kinetic 10 | 10 . Thermal 15 | 15 . Explosive . | . . Electromagnetic 1 | 1 . Robot Hit Streak 5 | 5 . Robot Miss Streak 2 | 2 . Penetration Max . | . . Secondary Targets . | . . Shots Hit Robots 16 | 16 . Core Hits 9 | 9 . Critical Kills . | . . Critical Parts Destroyed . | . . Critical Strikes . | . . Melee Attacks . | . . Impact . | . . Slashing . | . . Piercing . | . . Sneak Attacks . | . . Combat Hostiles . | . . Follow-up Attacks . | . . Damage Inflicted 188 | 188 . Guns 184 | 184 . Cannons . | . . Explosions . | . . Melee . | . . Ramming 4 | 4 . Kinetic 76 | 76 . Thermal 97 | 97 . Explosive . | . . Electromagnetic 11 | 11 . Impact . | . . Slashing . | . . Piercing . | . . Highest Corruption . | . . Average Corruption . | . . Corruption Purged . | . . Corruption Blocked . | . . Overload Shots . | . . Overflow Damage . | . . Projectiles . | . . Explosions . | . . Melee . | . . Knockbacks . | . . Impact . | . . Kinetic . | . . Secondary . | . . Self-Inflicted Damage 2 | 2 . Shots . | . . Rammed 2 | 2 . Targets Rammed 2 | 2 . Kicked . | . . Crushed . | . . Highest Temperature 35 | 35 . Average Temperature 18 | 18 . Received Heat Transfer 60 | 60 . Siege Activations . | . . Martial Activations . | . . Shielding Activations . | . . Robots Disrupted . | . . Combat Hostiles . | . . Robots Corrupted . | . . Combat Hostiles . | . . Parts Fried . | . . Impact Corruptions . | . . Robots Melted . | . . Combat Hostiles . | . . Parts Melted . | . . Heat Transferred 225 | 225 . Parts Sabotaged . | . . Parts Stolen . | . . Parts Stripped . | . . Power Chain Reactions . | . . Alert | -11 -10 ------- Run | Yrd Mat Maximum Alert Level . | . . Low Security (%) 100 | 100 100 Level 1 . | . . Level 2 . | . . Level 3 . | . . Level 4 . | . . Level 5 . | . . High Security . | . . Max Security . | . . Peak Influence . | . . Initial . | . . Average . | . . Influence Increases . | . . Influence Decreases . | . . Squads Dispatched . | . . Investigation . | . . Extermination . | . . Reinforcement . | . . Assault . | . . Garrison . | . . Intercept . | . . Searches Triggered . | . . Construction Impeded . | . . Haulers Reinforced . | . . Active Scanning Responses . | . . Cargo Convoy Interrupts . | . . Stealth | -11 -10 --------- Run | Yrd Mat Distress Signals . | . . Communications Jammed . | . . Distress Signals . | . . Times Spotted 18 | 14 4 Peak Tracking Total 5 | 5 4 Tactical Retreats 1 | 1 . Traps | -11 -10 ------- Run | Yrd Mat Traps Triggered . | . . Indirectly . | . . Trap Hack Attempts . | . . Triggered . | . . Disarmed . | . . Reprogrammed . | . . Reused . | . . Traps Extracted . | . . Installed . | . . Triggered . | . . Machines | -11 -10 ---------- Run | Yrd Mat Machines Disabled . | . . Max in Single Turn . | . . Machines Repaired . | . . Machines Dismantled . | . . Machines Sabotaged . | . . Overloaded Fab Kills . | . . Hacking | -11 -10 --------- Run | Yrd Mat Machines Accessed . | . . Terminals . | . . Fabricators . | . . Repair Stations . | . . Recycling Units . | . . Scanalyzers . | . . Garrison Access . | . . Total Hacks . | . . Successful . | . . Failed . | . . Catastrophic . | . . Database Lockouts . | . . Manual . | . . Terminals . | . . Fabricators . | . . Repair Stations . | . . Recycling Units . | . . Scanalyzers . | . . Garrison Access . | . . Terminal Hacks . | . . Fabricator Hacks . | . . Repair Station Hacks . | . . Recycling Unit Hacks . | . . Scanalyzer . | . . Garrison Access Hacks . | . . Unauthorized Hacks . | . . Terminals . | . . Fabricators . | . . Repair Stations . | . . Recycling Units . | . . Scanalyzers . | . . Garrison Access . | . . Data Cores Recovered . | . . Used . | . . Hacking Detections . | . . Full Trace Events . | . . Feedback Events . | . . Feedback Blocked . | . . Robot Schematics Acquired . | . . Robots Built . | . . Authchips . | . . Time . | . . Total Robot Build Rating . | . . Part Schematics Acquired . | . . Parts Built . | . . Authchips . | . . Time . | . . Total Part Build Rating . | . . Part Studies Acquired . | . . Parts Repaired . | . . Time . | . . Parts Recycled . | . . Recycled Matter . | . . Retrieved Matter . | . . Retrieved Components . | . . Parts Scanalyzed . | . . Part Schematics Acquired . | . . Parts Damaged . | . . Bothacking | -11 -10 ------------ Run | Yrd Mat Used RIF Installer . | . . Robots Hacked . | . . Non-combat . | . . Combat . | . . Robot Hacks Applied . | . . Relay Couplers Released . | . . Fabnet Peak Effective % . | . . Robots Rewired . | . . Allies Hacked . | . . Hacks Repelled . | . . Allies | -11 -10 -------- Run | Yrd Mat Total Allies . | . . Largest Group . | . . Highest-Rated Group . | . . Highest-Rated Ally . | . . Total Orders . | . . Ally Attacks . | . . Total Damage . | . . Kills . | . . Allies Corrupted . | . . Allies Melted . | . . Intel | -11 -10 ------- Run | Yrd Mat Active Infowar (turns) 47 | 47 . Terrain 47 | 47 . Robot Analysis Total . | . . Derelict Logs Recovered . | . . Drone Launches . | . . Drone Recoveries . | . . Exploration | -11 -10 ------------- Run | Yrd Mat Turns Passed 3295 | 3263 32 Spaces Moved 423 | 388 35 Core 25 | 25 . Treads . | . . Legs 243 | 243 . Wheels 155 | 120 35 Hover . | . . Flight . | . . Fastest Speed 50 | 50 80 Average Speed 102 | 104 80 Slowest Speed 120 | 120 80 Overloaded Moves . | . . Propulsion Burnouts . | . . Robots Hopped . | . . Potential Cave-ins . | . . Cave-ins Triggered . | . . Exploration Rate (%) 29 | 48 11 Regions Visited 1 Branch Regions . Pre-discovered Areas . | . . Known Exits Taken . | . . Unknown Exits Taken 1 | 1 . Scrap Searched . | . . Spaces Dug . | . . Terrain Destroyed 2 | 2 . Melee . | . . Projectile 2 | 2 . AOE . | . . Terrain Rammed . | . . Walls Destroyed . | . . Machines Disabled . | . . Actions | -11 -10 --------- Run | Yrd Mat Total 3254 | 3215 39 Wait 2776 | 2776 . Move 422 | 387 35 Hop . | . . Pick Up 18 | 16 2 Fast Attach . | . . Attach 18 | 16 2 Detach 1 | 1 . Swap 2 | 2 . Drop . | . . Fire 15 | 15 . Melee . | . . Ram 2 | 2 . Kick . | . . Crush . | . . Escape Stasis . | . . Rewire . | . . Trap . | . . Miscellaneous . | . . Route ------- -11/Scrapyard -10/Materials (discovered 1 exit: [*Min]) History --------- Turn | Location | Event 12 | -11/Scrapyard | Discovered new exit (range 15) 2582 | -11/Scrapyard | Assembled infested the area 2620 | -11/Scrapyard | Lost 3 parts (1p1n1w) 3249 | -11/Scrapyard | Core integrity fell below 50% 3262 | -11/Scrapyard | Core integrity fell below 20% 3264 | -11/Scrapyard | Entered Materials 3285 | -10/Materials | Discovered new exit (range 16) 3291 | -10/Materials | Lost 9 parts (1p4n1u3w) 3296 | -10/Materials | Destroyed by S-10 Pest with Light Assault Rifle Last Messages --------------- 03230_ Sml. Laser destroyed. 03236_ Acquired Wheel. 03238_ Acquired Mining Laser. 03239_ Wheel destroyed. 03250_ Mining Laser destroyed. 03252_ Ion Engine destroyed. 03254_ Slammed into as-08410. 03254_ Wheel destroyed. 03254_ Imp. Terrain Scanner destroyed. 03254_ Wheel destroyed. 03257_ Slammed into as-95343. 03260_ Wheel destroyed. 03262_ Acquired Wheel. LOCATION=UNKNOWN GOAL=ESCAPE 03264_ ALERT: A rogue bot has emerged from the scrapyard. Terminate on contact. 03275_ Acquired Lgt. Cannon. 03278_ Acquired Hcp. Matter Pod. 03285_ EXIT=FOUND Map ----- +----------------------------------------------------+ | ?????????????????????????????????????????????????? | | ?????????????????????????????????????????????????? | | ?????????????????????????????????????????????????? | | ?????????????????????????????????????????????????? | | ?????????????????????????????????????????????????? | | ?????????????????????????????????????????????????? | | ?????????????????????????????????????????????????? | | ?????????????????????????????????????????????????? | | ?????????????????????????????????????????????????? | | ?????????????????????????????????????????????????? | | ?????????????????????????????????????????????????? | | ?????????????????????????????????????????????????? | | ?????????????????????????????????????????????????? | | ?????????????????????????????????????????????????? | | ?????????????????????????????????????????????????? | | ?????????????????????????????????????????????????? | | ????########????#####????????????????????????????? | | ????# #????# ######???????????????????????? | | ????# !!! #????# ????????????????????????? | | ????# !!! #????# #?????????????????????????? | | ????# ! #????# #?????????????????????????? | | ????# #????# #?????????????????????????? | | ????# #????# #???######????????????????? | | ??#######+####### #### #####+???????????? | | ??# s T ??????????? | | ??# @ < w s ????????? | | ??# s ????????? | | ??# ###+################# # """ ??????????? | | ??# # ???????????????######????????????????? | | ??# # #???????????????????????????????????? | | ??# # #???????????????????????????????????? | | ??##### #???????????????????????????????????? | | ??????# #???????????????????????????????????? | | ??????# #???????????????????????????????????? | | ??????########???????????????????????????????????? | | ?????????????????????????????????????????????????? | | ?????????????????????????????????????????????????? | | ?????????????????????????????????????????????????? | | ?????????????????????????????????????????????????? | | ?????????????????????????????????????????????????? | | ?????????????????????????????????????????????????? | | ?????????????????????????????????????????????????? | | ?????????????????????????????????????????????????? | | ?????????????????????????????????????????????????? | | | | | | | | | | | | | +----------------------------------------------------+ Best States ------------- Heat Dissipation 25 Energy Generation 10 Energy Capacity 250 Matter Stores 300 Matter Capacity 300 Sight Range 16 Terrain Scan Range 16 Terrain Scan Density 10 Evasion (%) 55 Item Schematics ----------------- None Robot Schematics ------------------ None Fabricated ------------ Nothing Repaired ---------- Nothing Studied --------- None Alien Tech Used ----------------- None Achievements -------------- Curiosity Killed The Cat Challenges ------------ None Game ------ Seed RiotProtonScrapsphere Manual? 0 Play Time 00:07:41 Cumulative 26.2 hours Start 2025.11.24 @ 16:47:09 End 2025.11.24 @ 16:54:54 Sessions 1 Manual Loads 0 Difficulty Rogue Special Mode None Game No. 11 Rogue 11 Adventurer 0 Explorer 0 Win Type - Total 1 Types 1/0/0/0/0/0/0/0/0/0 Lore% 11 Gallery% 23 Achievement% 24 Wizard Run 0 Options --------- Layout 1 ASCII 0 Keyboard 0 Movement Numpad Keybinds 0 Fullscreen 1 Font 24/Smallcaps Map View 50x35 Zoom Use 0% Tactical HUD 1 Map Filters NONE Filters NONE Steam 1 RUN: 480e759a-a585-456e-a191-2d5471f2e61d